[Event "Late-Titled-Tuesday-Blitz-February-20-2024"]
[Site "Chess.com"]
[Date "2024.02.20"]
[Round "8"]
[White "kibromNNN"]
[Black "icaughtacrab"]
[Result "0-1"]
[WhiteElo "1733"]
[BlackElo "2053"]
[TimeControl "180+1"]
[EndTime "15:26:07 PST"]
[Termination "icaughtacrab won by resignation"]

1. d4 {[%clk 0:03:00.9]} 1... Nf6 {[%clk 0:02:59.9]} 2. c4 {[%clk 0:02:59.6]}
2... g6 {[%clk 0:03:00.4]} 3. Nc3 {[%clk 0:02:59.2]} 3... Bg7 {[%clk 0:03:00.8]}
4. e4 {[%clk 0:02:59.1]} 4... d6 {[%clk 0:03:01.2]} 5. Be2 {[%clk 0:02:57.8]}
5... O-O {[%clk 0:03:01.3]} 6. Nf3 {[%clk 0:02:57.6]} 6... e5 {[%clk 0:03:01.4]}
7. d5 {[%clk 0:02:55.7]} 7... a5 {[%clk 0:03:00.6]} 8. Bg5 {[%clk 0:02:55.1]}
8... Na6 {[%clk 0:03:00.6]} 9. Nd2 {[%clk 0:02:53.5]} 9... h6 {[%clk 0:02:59.6]}
10. Be3 {[%clk 0:02:52.4]} 10... b6 {[%clk 0:02:58.3]} 11. O-O {[%clk
0:02:48.8]} 11... Nc5 {[%clk 0:02:58.3]} 12. b3 {[%clk 0:02:48.1]} 12... Ne8
{[%clk 0:02:55.9]} 13. a3 {[%clk 0:02:46.8]} 13... f5 {[%clk 0:02:55]} 14. f3
{[%clk 0:02:43.5]} 14... f4 {[%clk 0:02:54.6]} 15. Bf2 {[%clk 0:02:42.4]} 15...
g5 {[%clk 0:02:52.8]} 16. b4 {[%clk 0:02:41.1]} 16... Nd7 {[%clk 0:02:52.2]} 17.
Nb3 {[%clk 0:02:31.2]} 17... h5 {[%clk 0:02:24.5]} 18. bxa5 {[%clk 0:02:28.6]}
18... bxa5 {[%clk 0:02:25.4]} 19. c5 {[%clk 0:02:26.7]} 19... a4 {[%clk
0:02:23.9]} 20. Nc1 {[%clk 0:02:22.6]} 20... Nxc5 {[%clk 0:02:22.6]} 21. Bxc5
{[%clk 0:02:19.6]} 21... dxc5 {[%clk 0:02:23.5]} 22. Nd3 {[%clk 0:02:19.5]}
22... Nf6 {[%clk 0:01:59.5]} 23. Nxc5 {[%clk 0:02:09.2]} 23... g4 {[%clk
0:01:54.6]} 24. Ne6 {[%clk 0:02:03.7]} 24... Bxe6 {[%clk 0:01:54.3]} 25. dxe6
{[%clk 0:02:04]} 25... Qe8 {[%clk 0:01:49.5]} 26. Bc4 {[%clk 0:01:59]} 26... Kh8
{[%clk 0:01:44.2]} 27. Nb5 {[%clk 0:01:36.4]} 27... Qe7 {[%clk 0:01:42.1]} 28.
Qc2 {[%clk 0:01:20.6]} 28... Rfd8 {[%clk 0:01:33.6]} 29. Rfd1 {[%clk 0:01:15.9]}
29... c6 {[%clk 0:01:32.9]} 30. Rxd8+ {[%clk 0:01:06.2]} 30... Rxd8 {[%clk
0:01:33.8]} 31. Nc3 {[%clk 0:01:02.3]} 31... Qc5+ {[%clk 0:01:33.3]} 32. Qf2
{[%clk 0:00:46.6]} 32... Qxc4 {[%clk 0:01:32.6]} 33. Ne2 {[%clk 0:00:45]} 33...
Qxe6 {[%clk 0:01:29.3]} 0-1

[Event "Late-Titled-Tuesday-Blitz-February-20-2024"]
[Site "Chess.com"]
[Date "2024.02.20"]
[Round "8"]
[White "ukchessbomber"]
[Black "ContrVersia"]
[Result "0-1"]
[WhiteElo "2618"]
[BlackElo "2864"]
[TimeControl "180+1"]
[EndTime "15:26:12 PST"]
[Termination "ContrVersia won by resignation"]

1. c4 {[%clk 0:03:00.9]} 1... Nf6 {[%clk 0:02:59.7]} 2. b3 {[%clk 0:03:00.9]}
2... g6 {[%clk 0:02:59.8]} 3. Bb2 {[%clk 0:03:01.8]} 3... Bg7 {[%clk 0:03:00.2]}
4. e3 {[%clk 0:03:02.5]} 4... O-O {[%clk 0:03:00.5]} 5. Nf3 {[%clk 0:03:03.2]}
5... c6 {[%clk 0:02:58.7]} 6. Be2 {[%clk 0:03:03]} 6... d5 {[%clk 0:02:58.8]} 7.
O-O {[%clk 0:03:03.7]} 7... Bg4 {[%clk 0:02:58.5]} 8. h3 {[%clk 0:03:02.8]} 8...
Bxf3 {[%clk 0:02:58.5]} 9. Bxf3 {[%clk 0:03:03.7]} 9... Nbd7 {[%clk 0:02:58.7]}
10. d4 {[%clk 0:03:03.9]} 10... e6 {[%clk 0:02:58.7]} 11. Nc3 {[%clk 0:03:04.4]}
11... a5 {[%clk 0:02:58.5]} 12. g3 {[%clk 0:03:04.3]} 12... Qb8 {[%clk 0:02:54]}
13. Qe2 {[%clk 0:03:03.7]} 13... Rc8 {[%clk 0:02:49.8]} 14. Rac1 {[%clk
0:03:03.4]} 14... Ne8 {[%clk 0:02:50.1]} 15. Rc2 {[%clk 0:03:03.1]} 15... Nd6
{[%clk 0:02:49.9]} 16. Rfc1 {[%clk 0:03:03]} 16... b5 {[%clk 0:02:48.7]} 17.
cxb5 {[%clk 0:01:53.3]} 17... cxb5 {[%clk 0:02:48.2]} 18. e4 {[%clk 0:01:53.9]}
18... b4 {[%clk 0:02:44.8]} 19. exd5 {[%clk 0:01:16.7]} 19... bxc3 {[%clk
0:02:37.2]} 20. dxe6 {[%clk 0:01:16.7]} 20... cxb2 {[%clk 0:02:30.4]} 21. Rxc8+
{[%clk 0:00:53.4]} 21... Nxc8 {[%clk 0:02:29.9]} 22. exf7+ {[%clk 0:00:52.5]}
22... Kxf7 {[%clk 0:02:23.4]} 23. Bd5+ {[%clk 0:00:48.7]} 23... Kf8 {[%clk
0:02:23.2]} 24. Re1 {[%clk 0:00:48.6]} 24... Nf6 {[%clk 0:02:14.3]} 25. Qe6
{[%clk 0:00:37.7]} 25... Ra7 {[%clk 0:02:11.7]} 26. Rb1 {[%clk 0:00:02.4]} 26...
Re7 {[%clk 0:02:07.3]} 27. Qc6 {[%clk 0:00:02.6]} 27... Qc7 {[%clk 0:02:00.7]}
28. Qb5 {[%clk 0:00:01.4]} 28... Nd6 {[%clk 0:01:58.4]} 29. Qf1 {[%clk
0:00:01.3]} 29... Nxd5 {[%clk 0:01:57.8]} 30. Rxb2 {[%clk 0:00:02.2]} 30... Bxd4
{[%clk 0:01:56.8]} 31. Rd2 {[%clk 0:00:02.4]} 31... Bc3 {[%clk 0:01:56.5]} 32.
Re2 {[%clk 0:00:01.7]} 32... Rxe2 {[%clk 0:01:55.9]} 33. Qxe2 {[%clk 0:00:02.6]}
33... Qe7 {[%clk 0:01:54]} 34. Qd3 {[%clk 0:00:02.5]} 34... Qe1+ {[%clk
0:01:53.2]} 35. Kg2 {[%clk 0:00:02.8]} 35... Qe4+ {[%clk 0:01:53.4]} 0-1

[Event "Late-Titled-Tuesday-Blitz-February-20-2024"]
[Site "Chess.com"]
[Date "2024.02.20"]
[Round "8"]
[White "DanielNaroditsky"]
[Black "prime-morty"]
[Result "1-0"]
[WhiteElo "3081"]
[BlackElo "2559"]
[TimeControl "180+1"]
[EndTime "15:26:22 PST"]
[Termination "DanielNaroditsky won by resignation"]

1. e4 {[%clk 0:03:00.5]} 1... d6 {[%clk 0:03:00.2]} 2. d4 {[%clk 0:03:00.8]}
2... Nf6 {[%clk 0:03:00.8]} 3. Nc3 {[%clk 0:03:01.2]} 3... e5 {[%clk 0:03:01.5]}
4. h4 {[%clk 0:03:01]} 4... Be7 {[%clk 0:02:58.8]} 5. h5 {[%clk 0:03:01.2]} 5...
h6 {[%clk 0:02:58.9]} 6. Nf3 {[%clk 0:03:01.8]} 6... Nbd7 {[%clk 0:02:53.3]} 7.
Be2 {[%clk 0:03:02.5]} 7... c6 {[%clk 0:02:52.4]} 8. Be3 {[%clk 0:03:02.5]} 8...
Qc7 {[%clk 0:02:52.6]} 9. a4 {[%clk 0:03:02.1]} 9... a5 {[%clk 0:02:52.3]} 10.
Nh4 {[%clk 0:03:02.6]} 10... exd4 {[%clk 0:02:30.3]} 11. Bxd4 {[%clk 0:03:02.9]}
11... Ne5 {[%clk 0:02:31]} 12. f4 {[%clk 0:03:02.6]} 12... Neg4 {[%clk
0:02:30.6]} 13. Nf5 {[%clk 0:02:59.7]} 13... Bxf5 {[%clk 0:02:10.1]} 14. exf5
{[%clk 0:03:00.6]} 14... c5 {[%clk 0:02:03.5]} 15. Bg1 {[%clk 0:02:57.5]} 15...
d5 {[%clk 0:01:50]} 16. Bxg4 {[%clk 0:02:58]} 16... d4 {[%clk 0:01:49.9]} 17.
Nb5 {[%clk 0:02:57.2]} 17... Qxf4 {[%clk 0:01:49.5]} 18. Bf3 {[%clk 0:02:56.9]}
18... O-O {[%clk 0:01:44.4]} 19. Qd2 {[%clk 0:02:54.4]} 19... Qxf5 {[%clk
0:01:40.9]} 20. O-O-O {[%clk 0:02:51.2]} 20... Nd5 {[%clk 0:01:37.2]} 21. Kb1
{[%clk 0:02:49.7]} 21... Bg5 {[%clk 0:01:35.6]} 22. Qd3 {[%clk 0:02:49.8]} 22...
Qxd3 {[%clk 0:01:32.4]} 23. cxd3 {[%clk 0:02:49.1]} 23... Rad8 {[%clk
0:01:29.7]} 24. Bf2 {[%clk 0:02:43.8]} 24... Bf4 {[%clk 0:01:23.8]} 25. Rh4
{[%clk 0:02:42.6]} 25... Bb8 {[%clk 0:01:21.8]} 26. Re4 {[%clk 0:02:42.6]} 26...
Nb4 {[%clk 0:01:09.1]} 27. Re7 {[%clk 0:02:41.4]} 27... b6 {[%clk 0:01:09.2]}
28. g4 {[%clk 0:02:40.2]} 28... Rfe8 {[%clk 0:01:07.8]} 29. Re4 {[%clk
0:02:38.4]} 29... Rxe4 {[%clk 0:01:01.9]} 30. Bxe4 {[%clk 0:02:39.3]} 30... Re8
{[%clk 0:00:55.2]} 31. Re1 {[%clk 0:02:36.9]} 31... Kf8 {[%clk 0:00:55.6]} 32.
Na3 {[%clk 0:02:30.1]} 32... Re6 {[%clk 0:00:33.4]} 33. Nc4 {[%clk 0:02:30.2]}
33... g6 {[%clk 0:00:33.8]} 34. hxg6 {[%clk 0:02:28.1]} 34... fxg6 {[%clk
0:00:34.7]} 35. Bh4 {[%clk 0:02:25.4]} 35... Bc7 {[%clk 0:00:30.3]} 36. Rf1+
{[%clk 0:02:24.2]} 36... Kg7 {[%clk 0:00:30.1]} 37. Be1 {[%clk 0:02:21.4]} 37...
Rf6 {[%clk 0:00:22.4]} 38. Rh1 {[%clk 0:02:22.1]} 38... g5 {[%clk 0:00:16.1]}
39. Bxb4 {[%clk 0:02:20.6]} 39... axb4 {[%clk 0:00:15.8]} 40. Bf5 {[%clk
0:02:17.9]} 40... Rf7 {[%clk 0:00:13.9]} 41. Nd2 {[%clk 0:02:18.1]} 41... Re7
{[%clk 0:00:12.4]} 42. Ne4 {[%clk 0:02:18.7]} 42... Re8 {[%clk 0:00:11.6]} 43.
Kc2 {[%clk 0:02:19.2]} 43... Ra8 {[%clk 0:00:10.5]} 44. Kb3 {[%clk 0:02:19.8]}
44... Be5 {[%clk 0:00:08.3]} 45. Nd2 {[%clk 0:02:18.9]} 45... Re8 {[%clk
0:00:07.2]} 46. Re1 {[%clk 0:02:19]} 46... Kf8 {[%clk 0:00:06.6]} 47. Nc4 {[%clk
0:02:19.3]} 47... Bc7 {[%clk 0:00:06.5]} 48. Rxe8+ {[%clk 0:02:17.8]} 48... Kxe8
{[%clk 0:00:07.4]} 49. Nd2 {[%clk 0:02:18.4]} 49... Ke7 {[%clk 0:00:07.8]} 50.
Kc4 {[%clk 0:02:19]} 50... Kf6 {[%clk 0:00:07.2]} 51. Kd5 {[%clk 0:02:18.8]}
51... h5 {[%clk 0:00:07.2]} 52. Ne4+ {[%clk 0:02:19.6]} 52... Kg7 {[%clk
0:00:07.4]} 53. gxh5 {[%clk 0:02:20.4]} 53... Kh6 {[%clk 0:00:07.7]} 54. Bg4
{[%clk 0:02:21.2]} 1-0

[Event "Late-Titled-Tuesday-Blitz-February-20-2024"]
[Site "Chess.com"]
[Date "2024.02.20"]
[Round "8"]
[White "WilsonPalencia21"]
[Black "KaydenTroffChess"]
[Result "0-1"]
[WhiteElo "2541"]
[BlackElo "2813"]
[TimeControl "180+1"]
[EndTime "15:26:49 PST"]
[Termination "KaydenTroffChess won by resignation"]

1. d4 {[%clk 0:02:46.7]} 1... Nf6 {[%clk 0:02:57.9]} 2. Nf3 {[%clk 0:02:26.6]}
2... g6 {[%clk 0:02:56.6]} 3. c4 {[%clk 0:02:11.8]} 3... Bg7 {[%clk 0:02:56.1]}
4. Nc3 {[%clk 0:02:12.4]} 4... d5 {[%clk 0:02:56.5]} 5. Bg5 {[%clk 0:02:12]}
5... Ne4 {[%clk 0:02:55.4]} 6. cxd5 {[%clk 0:02:12.5]} 6... Nxg5 {[%clk
0:02:55.4]} 7. Nxg5 {[%clk 0:02:13.4]} 7... e6 {[%clk 0:02:56]} 8. Qd2 {[%clk
0:02:14]} 8... exd5 {[%clk 0:02:56.4]} 9. Qe3+ {[%clk 0:02:14.5]} 9... Kf8
{[%clk 0:02:56.9]} 10. Qf4 {[%clk 0:02:14.9]} 10... Bf6 {[%clk 0:02:57.4]} 11.
h4 {[%clk 0:02:15.3]} 11... Kg7 {[%clk 0:02:53]} 12. O-O-O {[%clk 0:02:15]}
12... h6 {[%clk 0:02:52.3]} 13. Nf3 {[%clk 0:02:14.5]} 13... Be6 {[%clk
0:02:52.6]} 14. g4 {[%clk 0:02:08.9]} 14... Nd7 {[%clk 0:02:48.9]} 15. e3 {[%clk
0:02:01.2]} 15... c5 {[%clk 0:02:47.2]} 16. dxc5 {[%clk 0:01:58.8]} 16... Nxc5
{[%clk 0:02:46.1]} 17. Nd4 {[%clk 0:01:58.5]} 17... Rc8 {[%clk 0:02:42.6]} 18.
Kb1 {[%clk 0:01:57.1]} 18... Qb6 {[%clk 0:02:34.3]} 19. Rc1 {[%clk 0:01:24.7]}
19... Ne4 {[%clk 0:02:22.4]} 20. Nxe4 {[%clk 0:00:49.8]} 20... Rxc1+ {[%clk
0:02:17.1]} 21. Kxc1 {[%clk 0:00:49.9]} 21... Bxd4 {[%clk 0:01:52.1]} 22. exd4
{[%clk 0:00:49.4]} 22... Qxd4 {[%clk 0:01:49.4]} 23. Bg2 {[%clk 0:00:26.5]}
23... dxe4 {[%clk 0:01:42]} 24. Qxe4 {[%clk 0:00:24.8]} 24... Qxf2 {[%clk
0:01:11]} 25. Rf1 {[%clk 0:00:21]} 25... Qxh4 {[%clk 0:01:08.1]} 26. Qe5+ {[%clk
0:00:19.9]} 26... Kh7 {[%clk 0:01:08.2]} 27. Bxb7 {[%clk 0:00:16.3]} 27... Qxg4
{[%clk 0:01:01.9]} 28. Be4 {[%clk 0:00:14.9]} 28... Qg5+ {[%clk 0:01:01.3]} 29.
Qxg5 {[%clk 0:00:14.9]} 29... hxg5 {[%clk 0:01:02.2]} 30. a3 {[%clk 0:00:15.2]}
30... Kg7 {[%clk 0:01:02.3]} 31. Kd2 {[%clk 0:00:15.2]} 31... Rh2+ {[%clk
0:01:01.4]} 32. Kc3 {[%clk 0:00:15.2]} 32... f5 {[%clk 0:00:59.9]} 33. Bd3
{[%clk 0:00:15.5]} 33... g4 {[%clk 0:00:59.5]} 34. Rh1 {[%clk 0:00:15.9]} 34...
Rxh1 {[%clk 0:00:58.7]} 0-1

[Event "Late-Titled-Tuesday-Blitz-February-20-2024"]
[Site "Chess.com"]
[Date "2024.02.20"]
[Round "8"]
[White "Fluffey"]
[Black "jinxy2009"]
[Result "1-0"]
[WhiteElo "2353"]
[BlackElo "2191"]
[TimeControl "180+1"]
[EndTime "15:26:51 PST"]
[Termination "Fluffey won on time"]

1. d4 {[%clk 0:03:00.9]} 1... Nf6 {[%clk 0:02:55.7]} 2. Bf4 {[%clk 0:03:00.9]}
2... d5 {[%clk 0:02:54.3]} 3. e3 {[%clk 0:03:00.3]} 3... c5 {[%clk 0:02:54.3]}
4. Nf3 {[%clk 0:03:00.3]} 4... Nc6 {[%clk 0:02:54.8]} 5. Nbd2 {[%clk 0:03:00.4]}
5... Qb6 {[%clk 0:02:55.3]} 6. dxc5 {[%clk 0:03:00.9]} 6... Qxb2 {[%clk
0:02:55.1]} 7. Rb1 {[%clk 0:03:01.4]} 7... Qc3 {[%clk 0:02:51.7]} 8. Bb5 {[%clk
0:03:01.6]} 8... Bf5 {[%clk 0:02:33.1]} 9. Nd4 {[%clk 0:02:56.6]} 9... Bd7
{[%clk 0:01:55.8]} 10. O-O {[%clk 0:02:38.1]} 10... e5 {[%clk 0:01:37.3]} 11.
Bxc6 {[%clk 0:02:30.9]} 11... exf4 {[%clk 0:01:26.1]} 12. Bxb7 {[%clk
0:02:04.6]} 12... Rd8 {[%clk 0:01:12.5]} 13. c6 {[%clk 0:02:04.3]} 13... Bg4
{[%clk 0:01:08.9]} 14. N2f3 {[%clk 0:01:59.9]} 14... fxe3 {[%clk 0:00:56]} 15.
Re1 {[%clk 0:01:42.9]} 15... Ne4 {[%clk 0:00:15.8]} 16. Rxe3 {[%clk 0:01:39.2]}
16... Qc5 {[%clk 0:00:15.1]} 17. c4 {[%clk 0:01:22.5]} 17... Bd6 {[%clk
0:00:10.6]} 18. cxd5 {[%clk 0:01:06.4]} 18... f5 {[%clk 0:00:06.8]} 19. Ne6
{[%clk 0:00:54.2]} 19... Bxf3 {[%clk 0:00:01.5]} 20. gxf3 {[%clk 0:00:43.5]} 1-0

[Event "Late-Titled-Tuesday-Blitz-February-20-2024"]
[Site "Chess.com"]
[Date "2024.02.20"]
[Round "8"]
[White "HamedWafa4"]
[Black "Zq1"]
[Result "1-0"]
[WhiteElo "2721"]
[BlackElo "2491"]
[TimeControl "180+1"]
[EndTime "15:26:56 PST"]
[Termination "HamedWafa4 won by resignation"]

1. e4 {[%clk 0:02:59.4]} 1... c5 {[%clk 0:02:59.1]} 2. Nf3 {[%clk 0:02:59.8]}
2... d5 {[%clk 0:02:59.4]} 3. exd5 {[%clk 0:02:59.8]} 3... Qxd5 {[%clk
0:02:54.4]} 4. Nc3 {[%clk 0:03:00]} 4... Qd8 {[%clk 0:02:54.3]} 5. d4 {[%clk
0:03:00.4]} 5... cxd4 {[%clk 0:02:53.6]} 6. Nxd4 {[%clk 0:03:01.3]} 6... a6
{[%clk 0:02:51.7]} 7. Bf4 {[%clk 0:02:59.2]} 7... f6 {[%clk 0:02:48.7]} 8. Bd3
{[%clk 0:02:33.3]} 8... e5 {[%clk 0:02:45.4]} 9. Qh5+ {[%clk 0:02:32.9]} 9... g6
{[%clk 0:02:33.8]} 10. Bxg6+ {[%clk 0:02:30.7]} 10... hxg6 {[%clk 0:02:33.3]}
11. Qxh8 {[%clk 0:02:29.7]} 11... Kf7 {[%clk 0:02:00.9]} 12. Bxe5 {[%clk
0:02:03.7]} 12... Bg7 {[%clk 0:01:49.8]} 13. Qh4 {[%clk 0:01:57.9]} 13... Qe7
{[%clk 0:01:48.9]} 14. Nf3 {[%clk 0:01:51.8]} 14... fxe5 {[%clk 0:01:42.2]} 15.
Ng5+ {[%clk 0:01:51.4]} 15... Ke8 {[%clk 0:01:33.1]} 16. O-O-O {[%clk
0:01:45.8]} 16... Bf6 {[%clk 0:01:28.4]} 17. f4 {[%clk 0:01:44.6]} 17... Bxg5
{[%clk 0:01:19.2]} 18. fxg5 {[%clk 0:01:44]} 18... Be6 {[%clk 0:01:11.9]} 19.
Rhe1 {[%clk 0:01:36.7]} 19... Nc6 {[%clk 0:01:10.3]} 20. Ne4 {[%clk 0:01:34.3]}
20... Rd8 {[%clk 0:01:07.1]} 21. Qh8 {[%clk 0:01:26.1]} 21... Rxd1+ {[%clk
0:00:54]} 22. Rxd1 {[%clk 0:01:25.5]} 22... Nd4 {[%clk 0:00:52.4]} 23. Nf6+
{[%clk 0:01:18.5]} 23... Kf8 {[%clk 0:00:43.4]} 24. Rf1 {[%clk 0:01:13.9]} 24...
Nf5 {[%clk 0:00:25.2]} 25. g4 {[%clk 0:01:04.2]} 25... Qb4 {[%clk 0:00:14.5]}
26. gxf5 {[%clk 0:00:57]} 26... Qc4 {[%clk 0:00:14.3]} 27. Rd1 {[%clk
0:00:50.5]} 1-0

[Event "Late-Titled-Tuesday-Blitz-February-20-2024"]
[Site "Chess.com"]
[Date "2024.02.20"]
[Round "8"]
[White "mbojan"]
[Black "LiemLe"]
[Result "0-1"]
[WhiteElo "2907"]
[BlackElo "3050"]
[TimeControl "180+1"]
[EndTime "15:26:57 PST"]
[Termination "LiemLe won by resignation"]

1. e4 {[%clk 0:03:00.9]} 1... c5 {[%clk 0:03:00.2]} 2. Nf3 {[%clk 0:03:00.7]}
2... Nc6 {[%clk 0:03:00.9]} 3. Bb5 {[%clk 0:02:59.3]} 3... g6 {[%clk 0:03:01.3]}
4. O-O {[%clk 0:02:58.4]} 4... Bg7 {[%clk 0:03:01.4]} 5. c3 {[%clk 0:02:59.1]}
5... Nf6 {[%clk 0:03:00]} 6. Re1 {[%clk 0:02:59.3]} 6... O-O {[%clk 0:02:59.7]}
7. d4 {[%clk 0:02:58.9]} 7... d5 {[%clk 0:03:00]} 8. e5 {[%clk 0:02:58.5]} 8...
Ne4 {[%clk 0:03:00.3]} 9. Bxc6 {[%clk 0:02:59.1]} 9... bxc6 {[%clk 0:03:01.2]}
10. Be3 {[%clk 0:02:59.5]} 10... Qb6 {[%clk 0:03:00.2]} 11. Qc1 {[%clk
0:02:50.5]} 11... c4 {[%clk 0:03:00.4]} 12. Nbd2 {[%clk 0:02:44.3]} 12... Nxd2
{[%clk 0:03:00.7]} 13. Nxd2 {[%clk 0:02:44.9]} 13... Bf5 {[%clk 0:03:01.2]} 14.
b3 {[%clk 0:02:42]} 14... Bd3 {[%clk 0:03:01.2]} 15. b4 {[%clk 0:02:12.1]} 15...
a5 {[%clk 0:02:58.4]} 16. a3 {[%clk 0:02:12.3]} 16... Ra7 {[%clk 0:02:56]} 17.
Qb2 {[%clk 0:01:28.8]} 17... Rfa8 {[%clk 0:02:54.4]} 18. Nf3 {[%clk 0:01:24.4]}
18... Ra6 {[%clk 0:02:42.4]} 19. Rec1 {[%clk 0:01:12.9]} 19... Qa7 {[%clk
0:02:41.2]} 20. b5 {[%clk 0:00:42.3]} 20... Rb6 {[%clk 0:02:39]} 21. a4 {[%clk
0:00:42.4]} 21... cxb5 {[%clk 0:02:39.5]} 22. axb5 {[%clk 0:00:42.8]} 22... Qb7
{[%clk 0:02:36]} 23. Ne1 {[%clk 0:00:27.8]} 23... Rxb5 {[%clk 0:02:36]} 24. Qd2
{[%clk 0:00:28.6]} 24... Bf5 {[%clk 0:02:30.5]} 25. Bh6 {[%clk 0:00:26.4]} 25...
a4 {[%clk 0:02:21]} 26. h3 {[%clk 0:00:17.8]} 26... a3 {[%clk 0:02:08.2]} 27. g4
{[%clk 0:00:17.9]} 27... Bb1 {[%clk 0:02:03.8]} 28. Qf4 {[%clk 0:00:17.6]} 28...
a2 {[%clk 0:01:59.7]} 29. Nf3 {[%clk 0:00:14.9]} 29... Rb6 {[%clk 0:01:52.4]}
30. Bxg7 {[%clk 0:00:13.7]} 30... Kxg7 {[%clk 0:01:53.3]} 31. Ng5 {[%clk
0:00:14.3]} 31... f6 {[%clk 0:01:53.6]} 32. exf6+ {[%clk 0:00:13.8]} 32... exf6
{[%clk 0:01:54.5]} 33. Nf3 {[%clk 0:00:12.4]} 33... Re8 {[%clk 0:01:53]} 34. Kg2
{[%clk 0:00:10.8]} 34... Re2 {[%clk 0:01:46.1]} 35. g5 {[%clk 0:00:06.3]} 35...
Qe7 {[%clk 0:01:43.7]} 36. h4 {[%clk 0:00:01.8]} 36... Be4 {[%clk 0:01:38.2]}
37. Kg3 {[%clk 0:00:01.1]} 37... Bxf3 {[%clk 0:01:25.7]} 38. Qxf3 {[%clk
0:00:02]} 38... fxg5 {[%clk 0:01:24.5]} 39. hxg5 {[%clk 0:00:02.2]} 39... Qxg5+
{[%clk 0:01:24.9]} 40. Kh2 {[%clk 0:00:02.9]} 40... Re4 {[%clk 0:01:22.3]} 41.
Rxa2 {[%clk 0:00:03]} 41... Rh4+ {[%clk 0:01:22.2]} 0-1

[Event "Late-Titled-Tuesday-Blitz-February-20-2024"]
[Site "Chess.com"]
[Date "2024.02.20"]
[Round "8"]
[White "JaackCamel"]
[Black "mjelcic"]
[Result "0-1"]
[WhiteElo "2182"]
[BlackElo "2248"]
[TimeControl "180+1"]
[EndTime "15:27:01 PST"]
[Termination "mjelcic won by resignation"]

1. d4 {[%clk 0:03:00.9]} 1... b6 {[%clk 0:02:59.1]} 2. e4 {[%clk 0:02:58.1]}
2... Bb7 {[%clk 0:02:58.6]} 3. Bd3 {[%clk 0:02:57.8]} 3... e6 {[%clk 0:02:59.1]}
4. c4 {[%clk 0:02:57.5]} 4... c5 {[%clk 0:02:57.8]} 5. d5 {[%clk 0:02:56.7]}
5... exd5 {[%clk 0:02:49.9]} 6. cxd5 {[%clk 0:02:55.4]} 6... Nf6 {[%clk
0:02:44.6]} 7. Nc3 {[%clk 0:02:48.5]} 7... Bd6 {[%clk 0:02:42.7]} 8. Nf3 {[%clk
0:02:46.3]} 8... O-O {[%clk 0:02:38]} 9. O-O {[%clk 0:02:43.9]} 9... Ng4 {[%clk
0:02:34.8]} 10. Bg5 {[%clk 0:02:23]} 10... f6 {[%clk 0:02:27.1]} 11. Bh4 {[%clk
0:02:20.9]} 11... a6 {[%clk 0:02:27.4]} 12. a4 {[%clk 0:02:19.4]} 12... Qc7
{[%clk 0:02:23.2]} 13. Bg3 {[%clk 0:02:09.3]} 13... Bxg3 {[%clk 0:02:18.1]} 14.
hxg3 {[%clk 0:02:09]} 14... d6 {[%clk 0:02:17.5]} 15. b3 {[%clk 0:02:03.7]}
15... Nd7 {[%clk 0:02:17.3]} 16. Qc2 {[%clk 0:01:58.7]} 16... Nge5 {[%clk
0:02:15.5]} 17. Ne2 {[%clk 0:01:52.3]} 17... Rae8 {[%clk 0:02:01]} 18. Rac1
{[%clk 0:01:51.2]} 18... Nxf3+ {[%clk 0:01:57]} 19. gxf3 {[%clk 0:01:50.9]}
19... Ne5 {[%clk 0:01:57.2]} 20. Kg2 {[%clk 0:01:47.4]} 20... Bc8 {[%clk
0:01:51.8]} 21. Rh1 {[%clk 0:01:45]} 21... Qf7 {[%clk 0:01:46.1]} 22. Nf4 {[%clk
0:01:41.1]} 22... Nxd3 {[%clk 0:01:41]} 23. Qxd3 {[%clk 0:01:40.3]} 23... f5
{[%clk 0:01:41.1]} 24. Rce1 {[%clk 0:01:11.5]} 24... fxe4 {[%clk 0:01:37.1]} 25.
fxe4 {[%clk 0:01:11.2]} 25... g5 {[%clk 0:01:32.3]} 26. Nh3 {[%clk 0:00:59.1]}
26... Bxh3+ {[%clk 0:01:31.8]} 27. Kxh3 {[%clk 0:00:58.5]} 27... g4+ {[%clk
0:00:57.5]} 28. Kxg4 {[%clk 0:00:48.2]} 28... Qg6+ {[%clk 0:00:50.2]} 29. Kh3
{[%clk 0:00:43.8]} 29... Rxf2 {[%clk 0:00:50.3]} 30. g4 {[%clk 0:00:36.9]} 30...
Ref8 {[%clk 0:00:46.9]} 31. Re3 {[%clk 0:00:35.1]} 31... Qh6+ {[%clk 0:00:41.1]}
32. Kg3 {[%clk 0:00:29.1]} 32... Qxh1 {[%clk 0:00:39.5]} 0-1

[Event "Late-Titled-Tuesday-Blitz-February-20-2024"]
[Site "Chess.com"]
[Date "2024.02.20"]
[Round "8"]
[White "Goryachkina"]
[Black "Shankland"]
[Result "1/2-1/2"]
[WhiteElo "2709"]
[BlackElo "2932"]
[TimeControl "180+1"]
[EndTime "15:27:04 PST"]
[Termination "Game drawn by repetition"]

1. e4 {[%clk 0:02:59.6]} 1... c5 {[%clk 0:02:58.4]} 2. Nf3 {[%clk 0:02:59.2]}
2... d6 {[%clk 0:02:58.6]} 3. Bb5+ {[%clk 0:02:58.2]} 3... Bd7 {[%clk
0:02:57.9]} 4. Bxd7+ {[%clk 0:02:58.2]} 4... Nxd7 {[%clk 0:02:58.8]} 5. c3
{[%clk 0:02:55.9]} 5... Ngf6 {[%clk 0:02:58.1]} 6. Qe2 {[%clk 0:02:55.8]} 6...
e6 {[%clk 0:02:58.2]} 7. d4 {[%clk 0:02:55.5]} 7... Be7 {[%clk 0:02:58.2]} 8.
O-O {[%clk 0:02:51.3]} 8... O-O {[%clk 0:02:58.1]} 9. e5 {[%clk 0:02:44.1]} 9...
Nd5 {[%clk 0:02:57.1]} 10. c4 {[%clk 0:02:32.3]} 10... N5b6 {[%clk 0:02:54.2]}
11. dxc5 {[%clk 0:02:13]} 11... dxc5 {[%clk 0:02:49.2]} 12. Nc3 {[%clk
0:02:12.4]} 12... Qc7 {[%clk 0:02:47.2]} 13. Bf4 {[%clk 0:02:11.6]} 13... Qc6
{[%clk 0:02:46]} 14. Ne4 {[%clk 0:02:07.2]} 14... Rfd8 {[%clk 0:02:44.3]} 15. b3
{[%clk 0:02:06.1]} 15... Nf8 {[%clk 0:02:44]} 16. h4 {[%clk 0:02:04.5]} 16...
Rd7 {[%clk 0:02:42.1]} 17. h5 {[%clk 0:02:04.1]} 17... h6 {[%clk 0:02:37.3]} 18.
Nh2 {[%clk 0:01:38.6]} 18... Nh7 {[%clk 0:02:18.3]} 19. Rae1 {[%clk 0:01:31.4]}
19... Rad8 {[%clk 0:02:16]} 20. Qg4 {[%clk 0:01:18.1]} 20... Kh8 {[%clk
0:02:15.7]} 21. Re3 {[%clk 0:01:16.3]} 21... Rd4 {[%clk 0:02:03.1]} 22. Rfe1
{[%clk 0:01:02.2]} 22... Nd7 {[%clk 0:01:36.6]} 23. Rg3 {[%clk 0:00:42.1]} 23...
Bg5 {[%clk 0:01:33.4]} 24. Bxg5 {[%clk 0:00:15.7]} 24... Nxg5 {[%clk 0:01:32.7]}
25. Nxg5 {[%clk 0:00:09.1]} 25... Rxg4 {[%clk 0:01:26.1]} 26. Nxf7+ {[%clk
0:00:09.2]} 26... Kg8 {[%clk 0:01:22.5]} 27. Nxd8 {[%clk 0:00:10.1]} 27... Qc8
{[%clk 0:01:21.6]} 28. Nxg4 {[%clk 0:00:09.8]} 28... Qxd8 {[%clk 0:01:21.6]} 29.
Rd1 {[%clk 0:00:09.7]} 29... Kh7 {[%clk 0:01:19.5]} 30. Rgd3 {[%clk 0:00:06.2]}
30... Qg5 {[%clk 0:01:19.6]} 31. Rxd7 {[%clk 0:00:04.3]} 31... Qxg4 {[%clk
0:01:19.6]} 32. f3 {[%clk 0:00:04.8]} 32... Qxh5 {[%clk 0:01:19.3]} 33. Rxb7
{[%clk 0:00:04.3]} 33... Qxe5 {[%clk 0:01:19.2]} 34. Rdd7 {[%clk 0:00:04.5]}
34... Qe1+ {[%clk 0:01:11.8]} 35. Kh2 {[%clk 0:00:04.5]} 35... Qh4+ {[%clk
0:01:12.7]} 36. Kg1 {[%clk 0:00:05]} 36... Qe1+ {[%clk 0:01:13.6]} 37. Kh2
{[%clk 0:00:05.6]} 37... Qh4+ {[%clk 0:01:14.5]} 38. Kg1 {[%clk 0:00:05.9]}
38... Qe1+ {[%clk 0:01:14.5]} 1/2-1/2